[Event "Late-Titled-Tuesday-Blitz-December-26-2023"]
[Site "Chess.com"]
[Date "2023.12.26"]
[Round "10"]
[White "BeardedNM"]
[Black "powermove"]
[Result "1-0"]
[WhiteElo "2180"]
[BlackElo "2026"]
[TimeControl "180+1"]
[EndTime "15:52:55 PST"]
[Termination "BeardedNM won by resignation"]

1. e4 {[%clk 0:02:56.3]} 1... e5 {[%clk 0:02:56.7]} 2. Nf3 {[%clk 0:02:56.2]}
2... Nc6 {[%clk 0:02:54.5]} 3. Bb5 {[%clk 0:02:56.7]} 3... Nf6 {[%clk 0:02:53]}
4. d3 {[%clk 0:02:56.4]} 4... Bc5 {[%clk 0:02:49]} 5. Bxc6 {[%clk 0:02:55.5]}
5... dxc6 {[%clk 0:02:45.9]} 6. Nbd2 {[%clk 0:02:56]} 6... O-O {[%clk
0:02:43.6]} 7. Nc4 {[%clk 0:02:43.4]} 7... Nd7 {[%clk 0:02:41.9]} 8. O-O {[%clk
0:02:42]} 8... f6 {[%clk 0:02:41.6]} 9. Nh4 {[%clk 0:02:38.5]} 9... Nb6 {[%clk
0:02:39.9]} 10. Be3 {[%clk 0:02:35]} 10... Qe7 {[%clk 0:02:29.3]} 11. Bxc5
{[%clk 0:02:08.8]} 11... Qxc5 {[%clk 0:02:28.3]} 12. Ne3 {[%clk 0:02:03.1]}
12... g6 {[%clk 0:02:16.3]} 13. Kh1 {[%clk 0:01:50.2]} 13... Be6 {[%clk
0:02:09.3]} 14. Qe2 {[%clk 0:01:47.3]} 14... Rad8 {[%clk 0:02:05.9]} 15. g3
{[%clk 0:01:39.8]} 15... Nc8 {[%clk 0:01:58.7]} 16. f4 {[%clk 0:01:31]} 16...
Nd6 {[%clk 0:01:40.6]} 17. f5 {[%clk 0:01:25.6]} 17... Bf7 {[%clk 0:01:39.9]}
18. fxg6 {[%clk 0:01:17.5]} 18... Bxg6 {[%clk 0:01:38]} 19. Rae1 {[%clk
0:00:59]} 19... Kg7 {[%clk 0:01:09.4]} 20. Qg4 {[%clk 0:00:46.7]} 20... Kf7
{[%clk 0:00:57.1]} 21. Qg5 {[%clk 0:00:20.5]} 21... Ne8 {[%clk 0:00:54.1]} 22.
Qh6 {[%clk 0:00:14.6]} 22... Ng7 {[%clk 0:00:49.5]} 23. Nxg6 {[%clk 0:00:12.6]}
23... hxg6 {[%clk 0:00:48.9]} 24. Ng4 {[%clk 0:00:12.2]} 24... Rd6 {[%clk
0:00:46.8]} 25. Qh7 {[%clk 0:00:10.5]} 25... Rg8 {[%clk 0:00:35.3]} 26. Nh6+
{[%clk 0:00:10.3]} 26... Ke7 {[%clk 0:00:32.4]} 27. Nxg8+ {[%clk 0:00:09.9]}
27... Kf8 {[%clk 0:00:31.7]} 28. Nxf6 {[%clk 0:00:06.9]} 1-0

[Event "Late-Titled-Tuesday-Blitz-December-26-2023"]
[Site "Chess.com"]
[Date "2023.12.26"]
[Round "10"]
[White "BestestBP"]
[Black "chessajedrezz2020"]
[Result "0-1"]
[WhiteElo "2202"]
[BlackElo "2742"]
[TimeControl "180+1"]
[EndTime "15:53:01 PST"]
[Termination "chessajedrezz2020 won by checkmate"]

1. c4 {[%clk 0:03:00.9]} 1... c6 {[%clk 0:02:56.6]} 2. g3 {[%clk 0:02:58]} 2...
e5 {[%clk 0:02:54.4]} 3. Bg2 {[%clk 0:02:57.7]} 3... f5 {[%clk 0:02:54.4]} 4. d4
{[%clk 0:02:56.9]} 4... e4 {[%clk 0:02:52.5]} 5. Nh3 {[%clk 0:02:57.2]} 5... Nf6
{[%clk 0:02:52.5]} 6. Nc3 {[%clk 0:02:55.4]} 6... Be7 {[%clk 0:02:49.4]} 7. d5
{[%clk 0:02:55.3]} 7... d6 {[%clk 0:02:48.4]} 8. f3 {[%clk 0:02:53.2]} 8... Qb6
{[%clk 0:02:43.2]} 9. Nf2 {[%clk 0:02:48]} 9... exf3 {[%clk 0:02:25.7]} 10. exf3
{[%clk 0:02:46.5]} 10... O-O {[%clk 0:02:24.3]} 11. O-O {[%clk 0:02:46.2]} 11...
Na6 {[%clk 0:02:19.8]} 12. Kh1 {[%clk 0:02:42.6]} 12... Bd7 {[%clk 0:02:19.9]}
13. Nd3 {[%clk 0:02:38.1]} 13... cxd5 {[%clk 0:02:16.3]} 14. cxd5 {[%clk
0:02:36.5]} 14... Nc5 {[%clk 0:02:16.1]} 15. Be3 {[%clk 0:02:22]} 15... Qa6
{[%clk 0:02:13.9]} 16. Nxc5 {[%clk 0:02:17.6]} 16... dxc5 {[%clk 0:02:14.3]} 17.
Rc1 {[%clk 0:01:49.4]} 17... Bd6 {[%clk 0:02:11.6]} 18. a3 {[%clk 0:01:49.2]}
18... Rae8 {[%clk 0:02:10.1]} 19. Bg5 {[%clk 0:01:46.9]} 19... h6 {[%clk
0:02:08.8]} 20. Bd2 {[%clk 0:01:43.9]} 20... f4 {[%clk 0:01:48]} 21. Ne4 {[%clk
0:01:22.4]} 21... Nxe4 {[%clk 0:01:35]} 22. fxe4 {[%clk 0:01:22.6]} 22... fxg3
{[%clk 0:01:35.2]} 23. hxg3 {[%clk 0:01:18]} 23... Bxg3 {[%clk 0:01:25.2]} 24.
Rxc5 {[%clk 0:00:54.6]} 24... Qg6 {[%clk 0:01:11.6]} 25. d6 {[%clk 0:00:36.6]}
25... Bxd6 {[%clk 0:00:45.6]} 26. Rd5 {[%clk 0:00:36.8]} 26... Qg3 {[%clk
0:00:39.9]} 27. Rh5 {[%clk 0:00:15.3]} 27... Bg4 {[%clk 0:00:33.4]} 28. Be1
{[%clk 0:00:07.8]} 28... Rxf1+ {[%clk 0:00:30.4]} 29. Bxf1 {[%clk 0:00:07.7]}
29... Bf3+ {[%clk 0:00:30.7]} 30. Qxf3 {[%clk 0:00:05.8]} 30... Qxf3+ {[%clk
0:00:31]} 31. Bg2 {[%clk 0:00:06.4]} 31... Qxh5+ {[%clk 0:00:31.4]} 32. Kg1
{[%clk 0:00:07.3]} 32... Bc5+ {[%clk 0:00:31.4]} 33. Kf1 {[%clk 0:00:08.2]}
33... Rf8+ {[%clk 0:00:31.7]} 34. Bf2 {[%clk 0:00:06.3]} 34... Rxf2+ {[%clk
0:00:32.3]} 35. Ke1 {[%clk 0:00:06.9]} 35... Rxg2 {[%clk 0:00:31.9]} 36. b4
{[%clk 0:00:06.1]} 36... Qe2# {[%clk 0:00:32.8]} 0-1

[Event "Late-Titled-Tuesday-Blitz-December-26-2023"]
[Site "Chess.com"]
[Date "2023.12.26"]
[Round "10"]
[White "Iball95"]
[Black "TanitoluwaAps116"]
[Result "0-1"]
[WhiteElo "2808"]
[BlackElo "2771"]
[TimeControl "180+1"]
[EndTime "15:53:18 PST"]
[Termination "TanitoluwaAps116 won on time"]

1. e4 {[%clk 0:03:00.1]} 1... c5 {[%clk 0:02:54.5]} 2. Nf3 {[%clk 0:03:00.8]}
2... Nc6 {[%clk 0:02:54.1]} 3. Nc3 {[%clk 0:03:01.4]} 3... Nf6 {[%clk
0:02:53.6]} 4. Bb5 {[%clk 0:03:01.1]} 4... g6 {[%clk 0:02:44.5]} 5. O-O {[%clk
0:02:49.6]} 5... Bg7 {[%clk 0:02:44.1]} 6. Re1 {[%clk 0:02:49.9]} 6... O-O
{[%clk 0:02:43.5]} 7. h3 {[%clk 0:02:50.5]} 7... d6 {[%clk 0:02:43.8]} 8. a3
{[%clk 0:02:46.8]} 8... h6 {[%clk 0:02:42.4]} 9. d3 {[%clk 0:02:26.3]} 9... Bd7
{[%clk 0:02:40.7]} 10. Bc4 {[%clk 0:02:25.1]} 10... e6 {[%clk 0:02:34.9]} 11.
Bf4 {[%clk 0:02:20.4]} 11... Qe7 {[%clk 0:02:30.8]} 12. Qd2 {[%clk 0:02:14.9]}
12... g5 {[%clk 0:02:27.4]} 13. Bh2 {[%clk 0:02:11.1]} 13... g4 {[%clk
0:02:27.1]} 14. hxg4 {[%clk 0:02:10.3]} 14... Nxg4 {[%clk 0:02:28]} 15. Bg3
{[%clk 0:02:10.5]} 15... Rad8 {[%clk 0:02:06.4]} 16. Ba2 {[%clk 0:02:05.4]}
16... Bc8 {[%clk 0:01:54.9]} 17. Rab1 {[%clk 0:02:04.5]} 17... Qf6 {[%clk
0:01:53.1]} 18. Qf4 {[%clk 0:01:53.5]} 18... Qg6 {[%clk 0:01:49.1]} 19. Qd2
{[%clk 0:01:44.2]} 19... Nd4 {[%clk 0:01:45.7]} 20. Nh2 {[%clk 0:01:40.2]} 20...
Nxh2 {[%clk 0:01:43.7]} 21. Kxh2 {[%clk 0:01:41.1]} 21... h5 {[%clk 0:01:36.7]}
22. Ne2 {[%clk 0:01:40.4]} 22... h4 {[%clk 0:00:39]} 23. Bxh4 {[%clk 0:01:21.8]}
23... Bh6 {[%clk 0:00:38.5]} 24. Nf4 {[%clk 0:00:09.3]} 24... Qg4 {[%clk
0:00:26.7]} 25. Bg3 {[%clk 0:00:09.3]} 25... e5 {[%clk 0:00:24.1]} 26. f3 {[%clk
0:00:03.2]} 26... Qxg3+ {[%clk 0:00:15.3]} 27. Kxg3 {[%clk 0:00:03.1]} 27...
Bxf4+ {[%clk 0:00:15.9]} 28. Qxf4 {[%clk 0:00:03.7]} 28... exf4+ {[%clk
0:00:16.5]} 29. Kxf4 {[%clk 0:00:04.6]} 29... Be6 {[%clk 0:00:15.4]} 0-1

[Event "Late-Titled-Tuesday-Blitz-December-26-2023"]
[Site "Chess.com"]
[Date "2023.12.26"]
[Round "10"]
[White "Aguiar94"]
[Black "Maect19"]
[Result "1-0"]
[WhiteElo "2552"]
[BlackElo "2363"]
[TimeControl "180+1"]
[EndTime "15:53:30 PST"]
[Termination "Aguiar94 won by checkmate"]

1. e4 {[%clk 0:03:00.9]} 1... e5 {[%clk 0:02:59.7]} 2. Nf3 {[%clk 0:03:00.9]}
2... Nc6 {[%clk 0:02:59.6]} 3. Nc3 {[%clk 0:03:01.5]} 3... Nf6 {[%clk
0:02:59.4]} 4. Bb5 {[%clk 0:03:02.1]} 4... Bd6 {[%clk 0:02:58]} 5. d3 {[%clk
0:03:01.8]} 5... h6 {[%clk 0:02:57.1]} 6. a3 {[%clk 0:03:00.4]} 6... a6 {[%clk
0:02:57.3]} 7. Bc4 {[%clk 0:02:59.8]} 7... O-O {[%clk 0:02:56.6]} 8. g4 {[%clk
0:02:59.9]} 8... Nh7 {[%clk 0:02:53.5]} 9. h4 {[%clk 0:02:55.7]} 9... Nd4 {[%clk
0:02:52.4]} 10. g5 {[%clk 0:02:55.1]} 10... b5 {[%clk 0:02:44.1]} 11. Ba2 {[%clk
0:02:53.1]} 11... Kh8 {[%clk 0:02:39.6]} 12. gxh6 {[%clk 0:02:35.5]} 12... g6
{[%clk 0:02:31.3]} 13. Nxd4 {[%clk 0:02:05.9]} 13... exd4 {[%clk 0:02:31.1]} 14.
Ne2 {[%clk 0:02:05.2]} 14... c5 {[%clk 0:02:27.2]} 15. Bf4 {[%clk 0:01:55.7]}
15... Be7 {[%clk 0:02:23]} 16. Bg3 {[%clk 0:01:44]} 16... Bb7 {[%clk 0:02:14]}
17. Nf4 {[%clk 0:01:44]} 17... Nf6 {[%clk 0:01:51.4]} 18. Qe2 {[%clk 0:01:34.1]}
18... c4 {[%clk 0:01:26.4]} 19. Rg1 {[%clk 0:01:26.7]} 19... Qa5+ {[%clk
0:01:18.8]} 20. Qd2 {[%clk 0:01:23.7]} 20... c3 {[%clk 0:01:14.3]} 21. bxc3
{[%clk 0:01:18.6]} 21... dxc3 {[%clk 0:01:14.2]} 22. Qd1 {[%clk 0:01:16.2]}
22... Bxa3 {[%clk 0:01:06.5]} 23. Bb3 {[%clk 0:01:11.6]} 23... Qb4 {[%clk
0:01:00.3]} 24. Nh3 {[%clk 0:00:57.4]} 24... Rae8 {[%clk 0:00:56.8]} 25. Kf1
{[%clk 0:00:55.9]} 25... Bb2 {[%clk 0:00:53]} 26. Ng5 {[%clk 0:00:54.2]} 26...
d5 {[%clk 0:00:48.3]} 27. e5 {[%clk 0:00:37]} 27... Bxa1 {[%clk 0:00:45.7]} 28.
exf6 {[%clk 0:00:22.7]} 28... Bb2 {[%clk 0:00:45.5]} 29. Qf3 {[%clk 0:00:21.6]}
29... Qc5 {[%clk 0:00:35.2]} 30. h5 {[%clk 0:00:20.9]} 30... Bc1 {[%clk
0:00:29.8]} 31. Nxf7+ {[%clk 0:00:20.1]} 31... Kh7 {[%clk 0:00:24.1]} 32. hxg6+
{[%clk 0:00:21]} 32... Kxg6 {[%clk 0:00:23.8]} 33. Ne5+ {[%clk 0:00:17.3]} 33...
Kh7 {[%clk 0:00:20.1]} 34. Qf5+ {[%clk 0:00:15.9]} 34... Kh8 {[%clk 0:00:19.6]}
35. f7 {[%clk 0:00:12.1]} 35... Bxh6 {[%clk 0:00:12.1]} 36. Ng6+ {[%clk
0:00:10.3]} 36... Kg7 {[%clk 0:00:11.8]} 37. Be5+ {[%clk 0:00:08.3]} 37... Kh7
{[%clk 0:00:09.8]} 38. Nxf8# {[%clk 0:00:07.8]} 1-0

[Event "Late-Titled-Tuesday-Blitz-December-26-2023"]
[Site "Chess.com"]
[Date "2023.12.26"]
[Round "10"]
[White "Onthequiet"]
[Black "youngdinousaur"]
[Result "1-0"]
[WhiteElo "2425"]
[BlackElo "2299"]
[TimeControl "180+1"]
[EndTime "15:53:31 PST"]
[Termination "Onthequiet won by resignation"]

1. d4 {[%clk 0:02:55.7]} 1... Nf6 {[%clk 0:02:59.3]} 2. Nf3 {[%clk 0:02:56.2]}
2... e6 {[%clk 0:02:59.9]} 3. a3 {[%clk 0:02:55.2]} 3... d5 {[%clk 0:03:00.2]}
4. c4 {[%clk 0:02:55]} 4... Be7 {[%clk 0:02:57.4]} 5. Nc3 {[%clk 0:02:52.9]}
5... O-O {[%clk 0:02:57.2]} 6. Bf4 {[%clk 0:02:53.1]} 6... c6 {[%clk 0:02:53.6]}
7. e3 {[%clk 0:02:52.1]} 7... Nh5 {[%clk 0:02:50.4]} 8. Bg3 {[%clk 0:02:10.7]}
8... Nxg3 {[%clk 0:02:47.4]} 9. hxg3 {[%clk 0:02:11.3]} 9... h6 {[%clk 0:02:48]}
10. Qc2 {[%clk 0:02:07.9]} 10... Nd7 {[%clk 0:02:47.8]} 11. O-O-O {[%clk
0:02:07.1]} 11... b6 {[%clk 0:02:43]} 12. e4 {[%clk 0:02:06.3]} 12... dxe4
{[%clk 0:02:41.5]} 13. Qxe4 {[%clk 0:02:05.2]} 13... Bb7 {[%clk 0:02:40.2]} 14.
Bd3 {[%clk 0:02:03.1]} 14... Nf6 {[%clk 0:02:39.9]} 15. Qe2 {[%clk 0:02:02.1]}
15... Qc7 {[%clk 0:02:33.1]} 16. Rhe1 {[%clk 0:01:43.9]} 16... Rad8 {[%clk
0:02:32]} 17. Bb1 {[%clk 0:01:40.5]} 17... Rd7 {[%clk 0:02:28.9]} 18. Ne5 {[%clk
0:01:39.3]} 18... Rdd8 {[%clk 0:02:22.8]} 19. f4 {[%clk 0:01:37.3]} 19... c5
{[%clk 0:02:18.1]} 20. g4 {[%clk 0:01:31.2]} 20... cxd4 {[%clk 0:02:10.2]} 21.
Nb5 {[%clk 0:01:31]} 21... Qb8 {[%clk 0:01:57.3]} 22. g5 {[%clk 0:01:30.3]}
22... hxg5 {[%clk 0:01:56]} 23. fxg5 {[%clk 0:01:30.8]} 23... d3 {[%clk
0:00:48.2]} 24. Bxd3 {[%clk 0:01:20]} 24... Rxd3 {[%clk 0:00:47.1]} 25. Qxd3
{[%clk 0:01:13.8]} 25... Rd8 {[%clk 0:00:43.6]} 26. gxf6 {[%clk 0:01:05.9]}
26... Rxd3 {[%clk 0:00:40.8]} 27. fxe7 {[%clk 0:01:06.3]} 27... Rxd1+ {[%clk
0:00:18.1]} 28. Rxd1 {[%clk 0:01:06.9]} 28... Qxe5 {[%clk 0:00:12.4]} 29. e8=Q+
{[%clk 0:01:05.3]} 29... Kh7 {[%clk 0:00:13.1]} 30. Qxf7 {[%clk 0:00:54.6]}
30... Qe3+ {[%clk 0:00:11.8]} 31. Kb1 {[%clk 0:00:51.9]} 31... Be4+ {[%clk
0:00:05.9]} 32. Ka1 {[%clk 0:00:51.5]} 32... Qh6 {[%clk 0:00:02.8]} 33. Nc3
{[%clk 0:00:38.6]} 33... Bg6 {[%clk 0:00:03.3]} 34. Qxa7 {[%clk 0:00:35.4]}
34... Qh2 {[%clk 0:00:02.6]} 35. Qxb6 {[%clk 0:00:28.9]} 35... Qxg2 {[%clk
0:00:03.1]} 36. Qxe6 {[%clk 0:00:27.3]} 36... Qh2 {[%clk 0:00:03.5]} 37. Qd5
{[%clk 0:00:23.6]} 37... Qg3 {[%clk 0:00:03]} 38. Rh1+ {[%clk 0:00:21.9]} 1-0

[Event "Late-Titled-Tuesday-Blitz-December-26-2023"]
[Site "Chess.com"]
[Date "2023.12.26"]
[Round "10"]
[White "rdarruda"]
[Black "micke12a"]
[Result "1/2-1/2"]
[WhiteElo "2511"]
[BlackElo "2414"]
[TimeControl "180+1"]
[EndTime "15:53:39 PST"]
[Termination "Game drawn - insufficient material"]

1. Nf3 {[%clk 0:02:57.6]} 1... Nf6 {[%clk 0:02:43.7]} 2. d4 {[%clk 0:02:57.1]}
2... d5 {[%clk 0:02:43.6]} 3. c4 {[%clk 0:02:56.6]} 3... e6 {[%clk 0:02:44.2]}
4. Nc3 {[%clk 0:02:56.6]} 4... dxc4 {[%clk 0:02:44.6]} 5. e3 {[%clk 0:02:54.1]}
5... c5 {[%clk 0:02:38.7]} 6. Bxc4 {[%clk 0:02:52.4]} 6... a6 {[%clk 0:02:36.8]}
7. O-O {[%clk 0:02:51]} 7... Nc6 {[%clk 0:02:36.2]} 8. Ne5 {[%clk 0:02:38.3]}
8... cxd4 {[%clk 0:02:31]} 9. Nxc6 {[%clk 0:02:37]} 9... bxc6 {[%clk 0:02:31.5]}
10. exd4 {[%clk 0:02:36.7]} 10... a5 {[%clk 0:02:32.2]} 11. Qe2 {[%clk
0:02:30.9]} 11... Qb6 {[%clk 0:02:31.1]} 12. Be3 {[%clk 0:02:29.7]} 12... Nd5
{[%clk 0:02:28.4]} 13. Rac1 {[%clk 0:02:26.9]} 13... Ba6 {[%clk 0:02:27.4]} 14.
Bxa6 {[%clk 0:02:22.5]} 14... Qxa6 {[%clk 0:02:27.2]} 15. Qg4 {[%clk 0:02:20]}
15... h5 {[%clk 0:02:14.5]} 16. Qg3 {[%clk 0:02:18.4]} 16... h4 {[%clk
0:02:14.3]} 17. Qg4 {[%clk 0:02:18.5]} 17... Nf6 {[%clk 0:02:13.6]} 18. Qf3
{[%clk 0:02:18]} 18... h3 {[%clk 0:02:04.7]} 19. g3 {[%clk 0:02:17.6]} 19... Nd5
{[%clk 0:02:00.7]} 20. Rc2 {[%clk 0:02:10.5]} 20... a4 {[%clk 0:01:57.4]} 21. a3
{[%clk 0:02:07.9]} 21... Qd3 {[%clk 0:01:53]} 22. Rfc1 {[%clk 0:02:06.5]} 22...
Rb8 {[%clk 0:01:40.2]} 23. Nxa4 {[%clk 0:01:54.6]} 23... Qb5 {[%clk 0:01:15.9]}
24. Nc3 {[%clk 0:01:45.7]} 24... Nxc3 {[%clk 0:01:15.6]} 25. Rxc3 {[%clk
0:01:45.5]} 25... Qd5 {[%clk 0:01:13.5]} 26. Qxd5 {[%clk 0:01:09.6]} 26... exd5
{[%clk 0:01:12.7]} 27. b4 {[%clk 0:01:07.7]} 27... Ra8 {[%clk 0:01:12.1]} 28.
Rxc6 {[%clk 0:01:07.6]} 28... Rxa3 {[%clk 0:01:11.5]} 29. Rc8+ {[%clk
0:01:06.4]} 29... Kd7 {[%clk 0:01:12.2]} 30. R1c7+ {[%clk 0:01:05.6]} 30... Ke6
{[%clk 0:01:09.1]} 31. Kf1 {[%clk 0:00:53.8]} 31... Bd6 {[%clk 0:01:02.8]} 32.
Rxh8 {[%clk 0:00:53.6]} 32... Bxc7 {[%clk 0:01:01.8]} 33. Rxh3 {[%clk
0:00:54.5]} 33... Rb3 {[%clk 0:00:59.3]} 34. Bd2 {[%clk 0:00:45.2]} 34... Bd6
{[%clk 0:00:47.4]} 35. Rh8 {[%clk 0:00:38.5]} 35... Rb2 {[%clk 0:00:43.6]} 36.
Be1 {[%clk 0:00:29.7]} 36... Bxb4 {[%clk 0:00:36.8]} 37. Rb8 {[%clk 0:00:29.4]}
37... Ba3 {[%clk 0:00:34.5]} 38. Rxb2 {[%clk 0:00:30.3]} 38... Bxb2 {[%clk
0:00:34.7]} 39. Ke2 {[%clk 0:00:29.2]} 39... Bxd4 {[%clk 0:00:34.8]} 40. Kd3
{[%clk 0:00:30.1]} 40... Bb6 {[%clk 0:00:33.8]} 41. f3 {[%clk 0:00:30.6]} 41...
Kf5 {[%clk 0:00:33.2]} 42. Bd2 {[%clk 0:00:29.3]} 42... f6 {[%clk 0:00:31.2]}
43. g4+ {[%clk 0:00:30.2]} 43... Ke6 {[%clk 0:00:30.6]} 44. h4 {[%clk
0:00:30.3]} 44... g6 {[%clk 0:00:24.4]} 45. h5 {[%clk 0:00:29.4]} 45... gxh5
{[%clk 0:00:24.5]} 46. gxh5 {[%clk 0:00:30.2]} 46... Kf5 {[%clk 0:00:23.8]} 47.
h6 {[%clk 0:00:25.1]} 47... Kg6 {[%clk 0:00:23.4]} 48. Bf4 {[%clk 0:00:24.1]}
48... Bc5 {[%clk 0:00:20.2]} 49. Bd2 {[%clk 0:00:23.4]} 49... Bf8 {[%clk
0:00:19.7]} 50. Kd4 {[%clk 0:00:23.7]} 50... Bxh6 {[%clk 0:00:18.3]} 51. Bxh6
{[%clk 0:00:22.7]} 51... Kxh6 {[%clk 0:00:19.2]} 52. Kxd5 {[%clk 0:00:22.9]}
52... Kg5 {[%clk 0:00:20]} 53. Ke6 {[%clk 0:00:22.8]} 53... Kf4 {[%clk
0:00:17.4]} 54. Kxf6 {[%clk 0:00:22.8]} 54... Kxf3 {[%clk 0:00:17.6]} 1/2-1/2

[Event "Late-Titled-Tuesday-Blitz-December-26-2023"]
[Site "Chess.com"]
[Date "2023.12.26"]
[Round "10"]
[White "Pertinhez76"]
[Black "UK_23"]
[Result "1-0"]
[WhiteElo "2116"]
[BlackElo "2340"]
[TimeControl "180+1"]
[EndTime "15:53:39 PST"]
[Termination "Pertinhez76 won by resignation"]

1. e4 {[%clk 0:03:00.9]} 1... e5 {[%clk 0:02:58.8]} 2. Nf3 {[%clk 0:03:00.7]}
2... Nf6 {[%clk 0:02:57.4]} 3. Nxe5 {[%clk 0:02:58.6]} 3... Nxe4 {[%clk
0:02:57.3]} 4. Qe2 {[%clk 0:02:47.3]} 4... Qe7 {[%clk 0:02:57.2]} 5. Qxe4 {[%clk
0:02:45.1]} 5... d6 {[%clk 0:02:57.5]} 6. d4 {[%clk 0:02:42.3]} 6... dxe5 {[%clk
0:02:56.3]} 7. dxe5 {[%clk 0:02:42.5]} 7... Nc6 {[%clk 0:02:56.7]} 8. Bb5 {[%clk
0:02:38.9]} 8... Bd7 {[%clk 0:02:56.7]} 9. Nc3 {[%clk 0:02:37.9]} 9... O-O-O
{[%clk 0:02:49.1]} 10. Bd2 {[%clk 0:02:13.8]} 10... Nxe5 {[%clk 0:02:39.8]} 11.
O-O-O {[%clk 0:02:11.4]} 11... Bxb5 {[%clk 0:02:13.7]} 12. Nxb5 {[%clk
0:02:10.1]} 12... a6 {[%clk 0:02:14.3]} 13. Nc3 {[%clk 0:01:59.7]} 13... Nc6
{[%clk 0:02:10]} 14. Rhe1 {[%clk 0:01:58.5]} 14... Qxe4 {[%clk 0:01:58]} 15.
Nxe4 {[%clk 0:01:59.4]} 15... Be7 {[%clk 0:01:55.3]} 16. Bc3 {[%clk 0:01:57.5]}
16... f6 {[%clk 0:01:44.1]} 17. a3 {[%clk 0:01:55.7]} 17... Rxd1+ {[%clk
0:01:41.7]} 18. Kxd1 {[%clk 0:01:55.7]} 18... Rd8+ {[%clk 0:01:42.6]} 19. Kc1
{[%clk 0:01:51]} 19... Kd7 {[%clk 0:01:35.9]} 20. f4 {[%clk 0:01:50.2]} 20... f5
{[%clk 0:01:25.4]} 21. Nd2 {[%clk 0:01:45]} 21... g6 {[%clk 0:01:24.7]} 22. Nf3
{[%clk 0:01:44.5]} 22... Bd6 {[%clk 0:01:24.5]} 23. g3 {[%clk 0:01:43.6]} 23...
Re8 {[%clk 0:01:19.8]} 24. Rxe8 {[%clk 0:01:39]} 24... Kxe8 {[%clk 0:01:20.7]}
25. Kd2 {[%clk 0:01:36.1]} 25... Kf7 {[%clk 0:01:16.2]} 26. Kd3 {[%clk
0:01:35.4]} 26... h6 {[%clk 0:01:13.7]} 27. b4 {[%clk 0:01:30.7]} 27... b5
{[%clk 0:01:03.2]} 28. Bh8 {[%clk 0:01:23.7]} 28... Ne7 {[%clk 0:01:02.3]} 29.
c4 {[%clk 0:01:21.5]} 29... c6 {[%clk 0:01:01.9]} 30. c5 {[%clk 0:01:08.2]}
30... Bc7 {[%clk 0:01:01.2]} 31. Be5 {[%clk 0:01:08.7]} 31... Bd8 {[%clk
0:00:58.6]} 32. Bd6 {[%clk 0:01:06.9]} 32... Ke6 {[%clk 0:00:43.8]} 33. Bxe7
{[%clk 0:00:55.6]} 33... Bxe7 {[%clk 0:00:42.8]} 34. Ne5 {[%clk 0:00:56.5]}
34... g5 {[%clk 0:00:37.6]} 35. Nxc6 {[%clk 0:00:56.4]} 35... Bf6 {[%clk
0:00:37.8]} 36. Nb8 {[%clk 0:00:50.7]} 36... gxf4 {[%clk 0:00:36.5]} 37. gxf4
{[%clk 0:00:50.3]} 37... Bb2 {[%clk 0:00:37]} 38. Nxa6 {[%clk 0:00:48.2]} 38...
Bxa3 {[%clk 0:00:35.9]} 39. Nc7+ {[%clk 0:00:23.8]} 39... Kd7 {[%clk 0:00:36.1]}
40. Nd5 {[%clk 0:00:20.5]} 40... Ke6 {[%clk 0:00:32]} 41. Kd4 {[%clk 0:00:18.5]}
41... Bb2+ {[%clk 0:00:32.1]} 42. Nc3 {[%clk 0:00:19.4]} 42... Ba3 {[%clk
0:00:28.4]} 43. Nxb5 {[%clk 0:00:19.5]} 43... Bxb4 {[%clk 0:00:28.7]} 44. c6
{[%clk 0:00:18.7]} 44... Bd2 {[%clk 0:00:24.7]} 45. c7 {[%clk 0:00:18.7]} 45...
Kd7 {[%clk 0:00:24.8]} 46. Ke5 {[%clk 0:00:19.2]} 46... h5 {[%clk 0:00:17.8]}
47. Kxf5 {[%clk 0:00:19.2]} 47... h4 {[%clk 0:00:18.7]} 48. h3 {[%clk
0:00:19.2]} 48... Be1 {[%clk 0:00:18.9]} 49. Kg6 {[%clk 0:00:19]} 49... Bg3
{[%clk 0:00:18.4]} 50. f5 {[%clk 0:00:19.4]} 50... Be5 {[%clk 0:00:18.4]} 51. f6
{[%clk 0:00:19.5]} 51... Bxc7 {[%clk 0:00:18.4]} 52. Nxc7 {[%clk 0:00:18.9]} 1-0